bitfinex-derivatives/quotes_ETHF0:USTF0_20250828
["timestamp","ask_amount","ask_price","bid_price","bid_amount"]
[1756363723213,22.2798,4577.1,4577.0,1.91754]
[1756363723510,22.2798,4577.1,4577.0,0.39324]
[1756363723703,22.2798,4577.1,4577.0,0.70674]
[1756363723905,22.2798,4577.1,4577.0,1.62144]
[1756363724313,22.2798,4577.1,4577.0,1.18184]
[1756363724811,22.2798,4577.1,4577.0,0.86834]
[1756363725405,22.2798,4577.1,4577.0,0.39324]
[1756363725706,22.2798,4577.1,4577.0,2.62534]
[1756363725913,1.1678,4577.1,4577.0,2.62534]
[1756363726113,1.7705,4577.1,4577.0,2.62534]
[1756363726712,2.2238,4577.1,4577.0,2.62534]
[1756363726912,1.7705,4577.1,4577.0,5.83314]
[1756363729315,2.2238,4577.1,4577.0,5.83314]
[1756363731312,1.7705,4577.1,4577.0,5.83314]
[1756363732912,0.05299256,4577.8,4577.4,0.98303]
[1756363733113,4.0853,4578.2,4578.1,2.62525]
[1756363733303,24.1353,4578.2,4578.1,2.62525]
[1756363734412,24.5886,4578.2,4578.1,2.62525]
[1756363735018,22.238,4578.2,4578.1,2.62525]
[1756363736312,20.05,4578.2,4578.1,2.62525]
[1756363736615,0.9907,4578.4,4578.3,0.39313]
[1756363736812,21.7817,4578.4,4578.3,2.62523]
[1756363737116,22.235,4578.4,4578.3,2.62523]
[1756363742614,22.235,4578.4,4578.3,2.2321]
[1756363742819,24.9245,4578.4,4578.0,3.2078]
[1756363743017,0.8775,4578.1,4578.0,0.39316]
[1756363743222,22.229,4578.1,4578.0,0.39316]
[1756363744413,1.3308,4577.5,4577.4,3.2078]
[1756363744611,22.229,4577.5,4577.4,3.2078]
[1756363746315,22.229,4577.5,4577.3,0.39322]
[1756363748516,22.229,4577.5,4577.4,0.7368]
[1756363748722,22.229,4577.5,4577.4,1.2089]
[1756363749520,22.229,4577.5,4577.4,0.9246]
[1756363749717,22.229,4577.5,4577.2,0.39322]
[1756363749918,22.229,4577.5,4577.2,0.86532]
[1756363750217,0.8855,4577.3,4577.2,1.31782]
[1756363750414,2.1776,4577.1,4577.0,0.4525]
[1756363750614,2.1776,4577.0,4576.9,3.60105]
[1756363750807,2.1776,4577.0,4576.9,3.2078]
[1756363751011,2.1776,4577.0,4576.9,4.7098]
[1756363751213,1.7159,4577.0,4576.9,5.3733]
[1756363751416,20.038,4577.1,4577.0,1.23944]
[1756363751616,0.4207,4577.4,4577.3,2.55872]
[1756363751617,21.7529,4577.4,4577.3,2.55872]
[1756363752316,22.2146,4577.4,4577.3,43.35872]
[1756363755316,22.2146,4577.4,4577.3,41.8299]
[1756363755522,22.2146,4577.4,4577.3,41.3774]
[1756363756228,22.2146,4577.4,4577.3,40.8]
[1756363756727,22.2146,4577.4,4577.3,41.2525]
[1756363757528,22.2146,4577.4,4577.3,41.7246]
[1756363758229,22.2146,4577.4,4577.3,40.8]
[1756363758624,22.2146,4577.4,4577.3,41.2525]
[1756363759329,22.2146,4577.4,4577.0,0.8668]
[1756363759522,1.7569,4577.2,4577.1,1.2089]
[1756363759724,22.2116,4577.2,4577.1,1.2089]
[1756363760126,22.2116,4577.2,4577.1,2.28993]
[1756363760828,22.2116,4577.2,4577.1,1.89523]
[1756363761429,22.2116,4577.2,4577.1,2.55873]
[1756363762227,22.2116,4577.2,4577.0,0.39324]
[1756363762431,22.2116,4577.2,4577.1,0.9246]
[1756363762831,22.2116,4577.2,4577.1,1.2089]
[1756363763026,22.2116,4577.2,4577.1,1.6036]
[1756363764132,22.2116,4577.2,4577.1,1.2089]
[1756363767433,22.2116,4577.2,4577.1,1.60213]
[1756363767628,22.2116,4577.2,4576.9,3.2078]
[1756363767936,2.1776,4577.0,4576.9,3.2078]
[1756363768232,22.2076,4577.0,4576.9,3.2078]
[1756363768437,22.2076,4577.0,4576.8,0.39326]
[1756363768735,1.599,4576.9,4576.8,1.31786]
[1756363768932,2.1776,4576.9,4576.8,1.31786]
[1756363769131,2.1776,4576.9,4576.8,1.89526]
[1756363769336,2.1776,4576.9,4576.8,2.55876]
[1756363776042,1.2952,4576.9,4576.8,2.55876]
[1756363776342,1.7159,4576.9,4576.8,2.55876]
[1756363778542,0.9847,4576.9,4576.8,2.55876]
[1756363778742,0.4097,4576.9,4576.8,2.55876]
[1756363782642,20.4369,4577.0,4576.9,1.26345]
[1756363782942,20.4369,4577.0,4576.9,2.54375]
[1756363783845,20.7268,4577.0,4576.9,2.54375]
[1756363784943,21.0096,4577.0,4576.9,2.54375]
[1756363785242,21.4151,4577.0,4576.9,2.54375]
[1756363786342,22.1601,4577.0,4576.9,2.54375]
[1756363787843,22.1601,4577.0,4576.9,2.14735]
[1756363788243,22.1601,4577.0,4576.9,1.86295]
[1756363788438,22.1601,4577.0,4576.9,1.27715]
[1756363788638,22.1601,4577.0,4576.6,0.8839]
[1756363788840,22.1601,4577.0,4576.9,0.39325]
[1756363789036,22.1601,4577.0,4576.9,1.27715]
[1756363791347,22.1601,4577.0,4576.9,0.85135]
[1756363791549,22.1601,4577.0,4576.9,0.39325]
[1756363792348,22.1601,4577.0,4576.8,0.39326]
[1756363792649,2.1301,4576.7,4576.6,0.39327]
[1756363792847,22.1481,4576.7,4576.6,0.39327]
[1756363793043,21.2821,4576.7,4576.4,3.60109]
[1756363793247,2.1301,4576.6,4576.5,0.39328]
[1756363793545,2.1301,4576.6,4576.0,0.3964]
[1756363793846,2.1301,4576.0,4575.9,4.0917]
[1756363794048,22.1471,4576.0,4575.9,4.0917]
[1756363794949,22.1471,4576.0,4575.9,4.7791]
[1756363795343,22.1471,4576.0,4575.9,3.2078]
[1756363795946,22.1471,4576.0,4575.8,0.4581]
[1756363796546,0.9799,4575.7,4575.6,0.8839]
[1756363796853,22.1471,4575.7,4575.6,0.8839]
[1756363797652,22.1471,4575.7,4575.6,2.1505]
[1756363802452,22.1471,4575.7,4575.6,1.4697]
[1756363802851,22.1471,4575.7,4575.4,3.2078]
[1756363802852,0.866,4575.6,4575.4,3.2078]
[1756363803055,22.1451,4575.5,4575.1,0.3934]
[1756363803355,22.1451,4575.5,4575.0,1.27731]
[1756363803653,2.1301,4575.1,4575.0,1.27731]
[1756363804555,2.1301,4575.1,4575.0,0.39341]
[1756363804742,2.1301,4575.1,4575.0,0.85151]
[1756363804945,2.1301,4575.1,4575.0,2.25951]
[1756363805141,2.1301,4575.1,4575.0,2.54391]
[1756363806252,1.62656829,4576.0,4575.9,2.1505]
[1756363806451,21.64056829,4576.0,4575.9,1.7541]
[1756363806653,21.64056829,4576.0,4575.9,0.4581]
[1756363806965,22.03166829,4576.0,4575.9,0.4581]
[1756363807254,22.03166829,4576.0,4575.8,0.39334]
[1756363807959,21.2781,4576.0,4575.9,2.1381]
[1756363808157,21.6685,4576.0,4575.9,2.1381]
[1756363808949,22.0877,4576.0,4575.9,2.1381]
[1756363809150,22.0877,4576.0,4575.9,0.4409]
[1756363809349,22.0877,4576.0,4575.8,0.83424]
[1756363809550,1.288,4575.9,4575.8,1.24784]
[1756363809750,2.0721,4575.9,4575.8,1.53374]
[1756363811547,21.2745,4575.9,4575.8,2.53144]
[1756363811757,21.6649,4575.9,4575.8,2.53144]
[1756363812259,21.2745,4575.9,4575.8,2.53144]
[1756363812659,0.7841,4576.2,4576.1,2.53142]
[1756363812858,0.3937,4576.2,4576.1,2.53142]
[1756363813058,0.9764,4576.5,4576.4,2.53139]
[1756363813265,0.9764,4576.8,4576.7,2.53137]
[1756363813461,1.6529,4577.1,4577.0,2.53134]
[1756363813666,0.2846,4577.1,4577.0,2.53134]
[1756363813855,9.852,4577.2,4577.0,42.46644]
[1756363814162,9.852,4577.2,4577.1,2.1381]
[1756363814961,1.2625,4577.5,4577.4,2.1381]
[1756363815162,1.6529,4577.5,4577.4,2.1381]
[1756363815465,2.0721,4577.5,4577.4,2.1381]
[1756363815666,2.0721,4577.5,4577.4,2.31451225]
[1756363819870,1.6529,4577.5,4577.4,2.31451225]
[1756363823074,1.2625,4577.5,4577.4,2.31451225]
[1756363824176,0.7841,4578.3,4578.1,0.39315]
[1756363824369,0.9764,4578.2,4578.1,2.53125]
[1756363825267,0.3937,4578.7,4578.0,1.3656446]
[1756363825476,0.9764,4578.7,4578.6,2.1381]
[1756363826776,0.9764,4578.7,4578.6,42.9381]
[1756363827367,0.6783,4578.7,4578.6,42.9381]
[1756363827570,0.3937,4579.1,4578.9,0.39308]
[1756363827769,0.7841,4579.8,4579.7,2.1381]
[1756363827969,1.3668,4579.8,4579.7,2.1381]
[1756363828169,0.9764,4579.8,4579.7,2.1381]
[1756363828773,1.6529,4579.8,4579.7,2.1381]
[1756363829072,2.0721,4579.0,4578.9,4.481]
[1756363829271,2.0721,4579.0,4578.9,4.905]
[1756363829679,2.0721,4579.0,4578.9,5.3459]
[1756363831180,1.6529,4579.0,4578.9,5.3459]
[1756363831380,2.0721,4579.0,4578.9,4.9323]
[1756363831579,2.0721,4579.0,4578.9,3.9346]
[1756363831877,2.0721,4579.0,4578.9,4.3482]
[1756363832178,2.0721,4579.0,4578.9,4.6352]
[1756363832366,2.0721,4579.0,4578.9,5.0592]
[1756363832570,2.0721,4579.0,4578.9,5.3459]
[1756363834178,0.0192,4580.6,4580.5,1.4282]
[1756363834374,0.0192,4580.6,4580.5,2.1381]
[1756363836079,0.0312,4580.6,4580.5,2.1381]
[1756363840579,3.2078,4581.2,4580.6,0.39293]
[1756363840784,3.2078,4581.2,4581.1,2.1185]
[1756363842284,3.2185,4581.2,4581.1,2.1185]
[1756363844488,0.0107,4581.2,4581.1,2.1185]
[1756363845381,0.0107,4581.4,4581.1,0.8557]
[1756363845581,0.0107,4581.4,4581.3,2.1185]
[1756363846074,7.268,4581.5,4581.4,2.51137]
[1756363846677,3.2078,4581.7,4581.6,2.51135]
[1756363847088,19.3315,4582.3,4581.8,0.39283]
[1756363847279,19.3486,4582.3,4582.2,2.1185]
[1756363849887,20.7142446,4582.3,4582.2,1.7213]
[1756363850486,24.5802446,4582.3,4582.2,1.1459]
[1756363850881,25.15225509,4582.3,4582.2,0.4347]
[1756363851083,5.17325509,4582.3,4582.2,0.8656]
[1756363851282,25.15125509,4582.3,4582.2,0.8656]
[1756363852686,25.15125509,4582.3,4582.2,0.4347]
[1756363852881,29.34168509,4582.3,4581.4,0.6947]
[1756363853190,0.0278,4581.5,4581.4,2.1185]
[1756363857189,0.60181441,4581.5,4581.4,2.1185]
[1756363860888,0.5762,4581.1,4581.0,0.4309]
[1756363861089,22.48885901,4581.1,4581.0,0.4309]
[1756363861792,21.12321441,4581.1,4581.0,0.4309]
[1756363862389,21.12321441,4581.1,4581.0,0.7284]
[1756363862900,21.12321441,4581.1,4581.0,1.1631]
[1756363864098,21.12321441,4581.1,4581.0,0.4347]
[1756363864298,21.12321441,4581.1,4581.0,0.8656]
[1756363865397,20.86611441,4581.1,4580.7,0.3972]
[1756363865599,0.5762,4580.9,4580.8,0.4347]
[1756363865800,1.15021441,4580.9,4580.8,0.8656]
[1756363866202,0.90381441,4580.9,4580.8,2.1185]
[1756363872111,0.57401441,4580.9,4580.8,2.51142]
[1756363872421,3.5214,4581.8,4581.7,2.1365]
[1756363872719,9.41142017,4581.8,4581.7,2.1365]
[1756363872907,9.41142017,4581.8,4580.6,4.5734446]
[1756363872908,9.41732017,4581.8,4581.3,1.1695]
[1756363873218,1.9287446,4581.4,4581.3,0.8714]
[1756363873414,17.81276477,4581.4,4581.3,0.8714]
[1756363874113,0.3195,4581.1,4581.0,0.8714]
[1756363874411,5.1365446,4581.1,4581.0,0.8714]
[1756363874818,4.9028446,4581.1,4581.0,2.1365]
[1756363876712,5.1365446,4581.1,4581.0,2.1365]
[1756363879412,5.1365446,4581.1,4581.0,1.7254]
[1756363879613,5.1365446,4581.1,4581.0,0.8714]
[1756363880015,5.1365446,4581.1,4581.0,1.4555]
[1756363880319,4.9028446,4581.1,4581.0,2.1365]
[1756363880720,5.1365446,4581.1,4581.0,2.1365]
[1756363882021,4.9028446,4581.1,4581.0,2.1365]
[1756363884318,3.5214,4581.1,4581.0,2.1365]
[1756363884522,23.4805,4581.1,4581.0,2.1365]
[1756363884820,23.1768,4581.1,4581.0,2.1365]
[1756363885526,23.1867,4581.1,4581.0,2.1365]
[1756363886125,23.1768,4581.1,4581.0,2.1365]
[1756363887324,3.2078,4581.1,4581.0,2.1365]
[1756363887526,23.1758,4581.1,4581.0,2.1365]
[1756363888720,23.1857,4581.1,4581.0,2.1365]
[1756363889223,23.7611853,4581.1,4581.0,2.1365]
[1756363890024,24.0648853,4581.1,4581.0,2.1365]
[1756363891528,24.0638853,4581.1,4581.0,2.1365]
[1756363892421,24.0796853,4581.1,4581.0,2.1365]
[1756363893431,24.3133853,4581.1,4581.0,1.7254]
[1756363893830,24.3133853,4581.1,4581.0,2.1365]
[1756363898934,24.3133853,4581.1,4581.0,1.7254]
[1756363900632,24.3133853,4581.1,4581.0,1.1574]
[1756363900937,23.7502853,4581.1,4580.1,3.2078]
[1756363901131,0.3167,4580.4,4580.3,2.1473]
[1756363901331,20.2797,4580.4,4580.3,2.1473]
[1756363903637,19.963,4580.4,4580.3,2.1473]
[1756363904338,19.963,4580.4,4580.3,2.54026]
[1756363906840,19.9745,4580.4,4580.3,2.54026]
[1756363909743,20.2613,4580.4,4580.3,2.54026]
[1756363910241,20.2797,4580.4,4580.3,2.54026]
[1756363911043,0.0115,4581.0,4580.9,1.25711]
[1756363911342,19.9715,4581.0,4580.9,2.1473]
[1756363911742,20.2767,4581.0,4580.9,2.1473]
[1756363912432,0.3167,4581.0,4580.9,2.1473]
[1756363912645,0.3167,4581.5,4581.4,2.12746]
[1756363912839,20.2757,4581.5,4581.4,2.12746]
[1756363913242,20.2757,4581.5,4581.4,2.54016]
[1756363916442,19.959,4581.5,4581.4,2.54016]
[1756363917443,19.9705,4581.5,4581.4,2.54016]
[1756363917746,20.2573,4581.5,4581.4,2.54016]
[1756363919144,20.2573,4581.5,4581.4,43.34016]
[1756363919340,0.3052,4581.4,4581.3,3.2078]
[1756363919546,0.23,4581.3,4580.8,0.80561]
[1756363919736,0.5352,4580.9,4580.8,0.853]
[1756363919944,0.3167,4580.7,4580.6,0.4403]
[1756363920144,0.3167,4580.7,4580.6,0.853]
[1756363920440,1.3840446,4580.7,4580.4,3.2078]
[1756363920640,0.5352,4580.5,4580.4,3.2078]
[1756363920845,20.4882,4580.5,4580.4,3.2078]
[1756363921155,20.4882,4580.5,4580.4,3.6205]
[1756363922841,20.4882,4580.5,4580.2,0.4403]
[1756363922842,0.23,4580.4,4580.2,0.853]
[1756363923040,0.5352,4580.3,4580.2,0.853]
[1756363924450,0.5352,4580.3,4580.0,0.4301]
[1756363924644,0.5237,4580.1,4580.0,0.4403]
[1756363924950,0.3167,4580.1,4580.0,1.7346]
[1756363925252,0.3167,4580.1,4580.0,2.1473]
[1756363926147,0.3167,4580.1,4579.9,3.2078]
[1756363926352,19.953,4580.2,4579.9,3.2078]
[1756363926353,0.5352,4580.0,4579.9,3.2078]
[1756363927251,0.5352,4580.0,4579.9,4.0608]
[1756363927650,0.5352,4580.0,4579.9,4.6443]
[1756363927854,0.5352,4580.0,4579.9,5.3551]
[1756363929347,0.5352,4580.0,4579.9,1.8494]
[1756363929553,0.5352,4580.0,4579.9,0.853]
[1756363929954,0.2144,4579.9,4579.3,3.2078]
[1756363930153,0.2735,4579.3,4579.2,1.4033]
[1756363930458,20.2265,4579.3,4579.2,1.6769]
[1756363931253,0.2144,4580.7,4579.3,0.8405]
[1756363931450,0.2144,4580.7,4580.5,0.8364]
[1756363931451,5.2535,4580.6,4580.5,0.8364]
[1756363931657,5.2535,4580.6,4580.5,1.6769]
[1756363932057,5.2535,4580.6,4580.5,2.0773]
[1756363934352,14.296,4580.9,4580.8,0.5632]
[1756363934557,14.5695,4580.9,4580.8,2.0773]
[1756363935558,14.7839,4580.9,4580.8,2.0773]
[1756363936056,14.7839,4580.9,4580.8,1.6469]
[1756363936351,14.5695,4580.9,4580.8,2.0773]
[1756363937258,0.4879,4580.7,4580.6,0.4101]
[1756363937457,0.4879,4580.6,4580.5,0.4004]
[1756363938461,0.4879,4580.6,4580.5,0.8105]
[1756363938759,0.4879,4580.6,4580.5,2.0773]
[1756363939462,0.2735,4580.6,4580.5,2.0773]
[1756363940255,0.4879,4580.6,4580.5,2.0773]
[1756363940561,20.4399,4580.6,4580.5,2.0773]
[1756363940760,0.4879,4580.6,4580.5,2.0773]
[1756363940964,20.4399,4580.6,4580.5,2.0773]
[1756363942660,20.4399,4580.6,4580.5,1.6469]
[1756363942862,20.4399,4580.6,4580.5,0.8105]
[1756363943162,0.4879,4580.3,4580.2,0.8105]
[1756363943862,0.4879,4580.3,4579.6,3.6382]
[1756363943863,0.2735,4580.3,4579.6,3.6382]
[1756363944056,0.4879,4579.9,4579.8,0.8105]
[1756363944362,20.4399,4579.9,4579.8,0.8105]
[1756363946850,20.4399,4579.9,4579.6,3.6382]
[1756363946851,20.4399,4579.9,4579.6,3.2078]
[1756363947053,20.4399,4579.9,4579.1,40.8]
[1756363947054,0.2735,4579.2,4579.1,3.9278]
[1756363947361,0.2735,4579.2,4579.1,5.2851]
[1756363949556,0.2735,4579.2,4579.1,2.0773]
[1756363949865,0.4879,4579.2,4579.1,2.0773]
[1756363951763,0.2735,4579.2,4579.1,2.0773]
[1756363954565,19.953,4579.4,4579.3,0.2736]
[1756363954768,20.2265,4579.4,4579.3,2.0773]
[1756363955471,3.2078,4579.9,4579.3,0.8364]
[1756363955672,19.954,4579.9,4579.8,2.4703]
[1756363957367,19.954,4579.9,4579.8,2.0773]
[1756363960572,3.2078,4580.5,4580.3,0.39296]
[1756363960774,1.3656446,4580.7,4580.3,3.2078]
[1756363960979,0.2748,4580.4,4580.3,2.0916]
[1756363961177,0.2748,4580.4,4580.0,0.8137]
[1756363961374,1.8402446,4580.1,4580.0,0.8137]
[1756363961577,9.6202446,4580.1,4580.0,0.8137]
[1756363961872,9.6202446,4580.1,4580.0,0.4164]
[1756363962378,9.6202446,4580.1,4579.7,0.3973]
[1756363962572,0.2748,4579.7,4579.6,2.0916]
[1756363964381,8.0548,4580.1,4580.0,0.8541]
[1756363964574,8.0548,4580.1,4580.0,2.0916]
[1756363967084,8.0548,4580.1,4580.0,1.2375]
[1756363967278,8.2546,4580.1,4580.0,0.8137]
[1756363968179,8.2546,4580.1,4580.0,2.0916]
[1756363968486,8.0548,4580.1,4580.0,2.0916]
[1756363969482,8.2546,4580.1,4580.0,2.0916]
[1756363969775,0.4746,4579.8,4579.5,0.3973]
[1756363969975,1.8402446,4579.6,4579.5,0.8137]
[1756363971781,1.8402446,4579.6,4579.1,0.8137]
[1756363971976,0.2748,4579.3,4579.2,2.0916]
[1756363972185,14.2528,4579.3,4579.2,2.0916]
[1756363972578,14.4526,4579.3,4579.2,2.0916]
[1756363973882,14.2528,4579.3,4579.2,2.0916]
[1756363975778,3.4826,4579.8,4579.7,0.8541]
[1756363976084,3.4826,4579.8,4579.7,2.0916]
[1756363979486,3.2078,4579.8,4579.7,2.0916]
[1756363980287,23.1968,4579.8,4579.7,2.0916]
[1756363980788,23.4716,4579.8,4579.7,2.0916]
[1756363983385,23.4596,4579.8,4579.7,2.0916]
[1756363984886,23.6594,4579.8,4579.7,0.8137]
[1756363985991,23.4596,4579.8,4579.7,2.0916]
[1756363987789,0.2748,4579.8,4579.7,2.0916]
[1756363987989,8.7698,4579.8,4579.7,2.0916]
[1756363988190,8.7698,4579.8,4579.7,2.48461]
[1756363988986,0.2748,4579.8,4579.7,2.48461]
[1756363989184,3.4888,4580.3,4580.2,2.0697]
[1756363989679,3.6737,4580.3,4580.2,2.0697]
[1756363989876,3.6737,4580.3,4580.2,1.1101]
[1756363990681,3.4888,4580.3,4580.2,1.6523]
[1756363990876,3.4888,4580.3,4580.2,2.0697]
[1756363991089,3.2078,4580.3,4580.2,2.0697]
[1756363991289,9.571,4580.4,4580.2,1.20346]
[1756363991488,9.571,4580.4,4580.3,2.0697]
[1756363992986,31.6349,4581.0,4580.5,0.39294]
[1756363993190,3.2078,4581.3,4581.0,0.3929]
[1756363993387,3.2078,4581.3,4581.2,2.0697]
[1756363993590,3.2078,4581.8,4581.5,0.39285]
[1756363993782,9.58,4582.1,4581.7,0.423]
[1756363994086,0.281,4581.7,4581.6,2.0697]
[1756363996088,9.299,4582.1,4582.0,0.2639]
[1756363996293,9.58,4582.1,4582.0,2.0697]
[1756364000691,0.281,4582.1,4582.0,2.0697]
[1756364000890,19.952,4582.4,4582.3,1.2592]
[1756364001096,19.952,4582.4,4582.3,2.0697]
[1756364002898,20.233,4582.4,4582.3,2.0697]
[1756364003593,19.952,4582.4,4582.3,2.0697]
[1756364005299,3.4888,4583.0,4582.9,2.0697]
[1756364005594,23.4378,4583.0,4582.9,2.0697]
[1756364005998,20.4139,4583.0,4582.9,0.8418]
[1756364006596,20.4139,4583.0,4582.9,0.423]
[1756364007002,0.1839,4582.9,4582.7,0.423]
[1756364007199,0.4649,4582.8,4582.7,0.8418]
[1756364007799,20.4129,4582.8,4582.7,0.8418]
[1756364008004,20.4129,4582.8,4582.7,1.374]
[1756364008202,20.4129,4582.8,4582.7,1.7914]
[1756364009399,20.4129,4582.8,4582.7,2.0697]
[1756364009595,20.229,4582.8,4582.7,2.0697]
[1756364011892,20.4129,4582.8,4582.7,1.6523]
[1756364012098,20.4129,4582.8,4582.7,1.50285]
[1756364012405,20.229,4582.8,4582.5,3.60056]
[1756364012605,0.4649,4582.7,4582.6,0.8418]
[1756364013506,0.281,4582.7,4582.6,2.0697]
[1756364013703,0.281,4583.1,4583.0,0.93932]
[1756364013905,0.281,4583.1,4583.0,2.04362]
[1756364014401,0.281,4583.1,4583.0,2.46242]
[1756364015198,20.227,4583.5,4583.4,0.65659]
[1756364015399,20.227,4583.5,4583.4,2.46239]
[1756364016300,20.4109,4583.5,4583.4,2.46239]
[1756364016498,20.4109,4583.5,4583.4,2.04499]
[1756364016896,20.4109,4583.5,4583.4,2.0697]
[1756364017100,0.1839,4583.4,4583.3,0.3927]
[1756364017396,0.4649,4583.4,4583.3,1.2345]
[1756364017799,0.4649,4583.4,4583.3,1.5028]
[1756364018009,0.4649,4583.4,4583.3,1.7667]
[1756364018207,0.4649,4583.4,4583.3,2.1979]
[1756364018507,0.4649,4583.4,4583.3,2.4801]
[1756364018809,0.281,4583.4,4583.3,2.4801]
[1756364021713,0.2558,4584.0,4583.9,2.0729]
[1756364022007,20.1988,4584.0,4583.9,2.0729]
[1756364022209,20.77015336,4584.0,4583.9,2.0729]
[1756364023002,0.82715336,4584.0,4583.9,2.0729]
[1756364023206,20.368,4584.0,4583.9,1.6417]
[1756364023409,20.1978,4584.0,4583.9,2.0729]
[1756364025911,20.368,4584.0,4583.9,1.6417]
[1756364026610,20.368,4584.0,4583.9,0.8309]
[1756364026811,20.93975761,4584.0,4583.9,0.8309]
[1756364027106,20.93975761,4584.0,4583.9,0.414]
[1756364027310,20.93975761,4584.0,4583.9,0.8309]
[1756364030117,20.93975761,4584.0,4583.6,0.82387]
[1756364030313,19.942,4584.0,4583.8,0.8309]
[1756364030517,0.1702,4583.9,4583.8,0.8309]
[1756364030716,0.426,4583.9,4583.8,0.8309]
[1756364032508,0.2558,4583.4,4583.3,0.928]
[1756364032714,20.1948,4583.4,4583.3,2.0516]
[1756364033117,20.1948,4583.4,4583.3,2.4656]
[1756364034216,34.9066,4584.1,4584.0,1.2277]
[1756364034421,55.0158,4584.1,4584.0,1.6417]
[1756364035814,55.0158,4584.1,4584.0,2.0729]
[1756364036431,54.8456,4584.1,4584.0,2.0729]
[1756364037134,55.0158,4584.1,4584.0,2.0729]
[1756364038129,55.0158,4584.1,4584.0,2.46554]
[1756364038833,55.0158,4584.1,4584.0,2.0729]
[1756364039034,51.808,4584.1,4584.0,2.0729]
[1756364040431,51.808,4584.1,4584.0,1.1131]
[1756364040736,0.426,4583.8,4583.7,0.8309]
[1756364040936,20.1928,4583.8,4583.7,2.0729]
[1756364041530,20.363,4583.8,4583.7,1.6417]
[1756364041938,20.363,4583.8,4583.7,2.0729]
[1756364042639,20.363,4583.8,4583.7,1.084]
[1756364042941,20.1928,4583.8,4583.7,2.0729]
[1756364043844,20.363,4583.8,4583.7,2.0729]
[1756364044535,20.1918,4583.8,4583.7,2.0729]
[1756364046542,20.1918,4583.8,4583.6,0.39267]
[1756364046543,0.426,4583.7,4583.6,0.8309]
[1756364046739,0.1702,4583.6,4583.3,0.3927]
[1756364046945,20.362,4583.5,4583.4,41.6309]
[1756364047242,20.362,4583.5,4583.4,0.8309]
[1756364048442,20.362,4583.5,4583.4,1.7834]
[1756364048744,20.1918,4583.5,4583.4,2.0663]
[1756364049650,20.1908,4583.5,4583.4,2.0663]
[1756364050448,0.2558,4583.5,4583.4,2.0663]
[1756364050647,20.1908,4583.5,4583.4,2.0663]
[1756364051748,20.1908,4583.5,4583.4,2.45899]
[1756364052749,20.3457,4583.5,4583.4,1.6424]
[1756364052947,20.3457,4583.5,4583.4,2.03509]
[1756364053543,20.3457,4583.5,4583.0,3.2078]
[1756364053544,21.5564446,4583.5,4583.0,3.8989]
[1756364053750,0.2478,4583.3,4583.2,0.405]
[1756364054051,0.4027,4583.3,4583.2,0.405]
[1756364054548,0.1549,4583.2,4583.0,0.7953]
[1756364054850,0.2478,4582.6,4582.5,2.0384]
[1756364055053,20.1828,4582.9,4582.8,0.8192]
[1756364055349,20.1828,4582.9,4582.8,2.0384]
[1756364058553,20.3377,4582.9,4582.8,1.6145]
[1756364059057,20.3377,4582.9,4582.8,2.0384]
[1756364059456,20.1828,4582.9,4582.8,2.0384]
[1756364059954,20.1828,4582.9,4582.8,1.6145]
[1756364060151,20.1828,4582.9,4582.8,2.0384]
[1756364060353,0.1549,4582.8,4582.6,0.7953]
[1756364060552,0.4027,4582.7,4582.6,0.7953]
[1756364061955,4.21821001,4582.7,4582.1,0.7953]
[1756364062157,0.4027,4582.2,4582.1,0.405]
[1756364062351,20.3387,4582.2,4582.1,0.405]
[1756364062763,20.1838,4582.2,4581.9,0.3903]
[1756364063054,0.4027,4581.9,4581.5,3.2078]
[1756364063252,3.2078,4582.5,4581.5,3.2078]
[1756364063253,0.4027,4581.7,4581.6,0.7953]
[1756364063851,0.4027,4581.7,4581.2,0.4239]
[1756364064049,0.4027,4581.1,4581.0,3.2078]
[1756364064458,0.4027,4581.1,4581.0,3.7441]
[1756364064667,0.2478,4581.1,4581.0,5.2462]
[1756364065160,0.4027,4581.1,4581.0,1.0625]
[1756364065552,0.4027,4581.1,4581.0,1.3316]
[1756364065752,0.4027,4581.1,4581.0,1.7555]
[1756364065953,0.4027,4581.1,4581.0,2.0384]
[1756364066257,0.2478,4581.1,4581.0,2.0384]
[1756364066964,0.4027,4581.7,4581.6,2.0384]
[1756364067160,20.3407,4581.7,4581.6,2.0384]
[1756364067368,20.3407,4581.7,4581.6,1.6145]
[1756364070663,20.1858,4581.7,4581.6,2.0384]
[1756364071361,20.3407,4581.7,4581.6,1.6145]
[1756364073158,0.4027,4581.7,4581.6,1.6145]
[1756364073468,9.8677,4581.7,4581.6,1.6145]
[1756364073965,9.8677,4581.7,4581.6,2.0384]
[1756364074565,9.7128,4581.7,4581.6,2.0384]
[1756364076460,9.7128,4581.7,4581.6,2.43125]
[1756364077159,9.7128,4581.7,4581.6,2.0384]
[1756364077358,9.8677,4581.7,4581.6,0.7953]
[1756364078765,9.8677,4581.7,4581.6,1.0428]
[1756364078966,9.8677,4581.7,4581.6,1.4628]
[1756364079465,9.8677,4581.7,4581.6,1.0428]
[1756364079661,9.8677,4581.7,4581.6,0.7953]
[1756364081767,9.8677,4581.7,4581.6,1.0428]
[1756364081967,9.8677,4581.7,4581.6,1.3075]
[1756364082368,9.8677,4581.7,4581.6,2.12035]